[Event "Titled Tuesday Blitz February 14 Late 2023"]
[White "Mikaelyan, Arman"]
[Black "Sztokbant, Bernardo Vainzoff"]
[WhiteFideId "13304852"]
[BlackFideId "2115956"]
[WhiteElo "2523"]
[BlackElo "2213"]
[Result "1-0"]
[Round "03"]
[TimeControl "180+2"]
[Date "2023.02.14"]
[WhiteClock "0:00:32"]
[BlackClock "0:00:37"]

1. h3 {[%clk 0:03:00]}  c5 {[%clk 0:02:59]} 2. e4 {[%clk 0:02:58]}  Nc6 {[%clk 0:02:59]} 3. Nc3 {[%clk 0:02:58]}  d6 {[%clk 0:02:57]} 4. Nf3 {[%clk 0:02:53]}  g6 {[%clk 0:02:55]} 5. Bc4 {[%clk 0:02:47]}  Bg7 {[%clk 0:02:55]} 6. O-O {[%clk 0:02:47]}  Nf6 {[%clk 0:02:54]} 7. d3 {[%clk 0:02:46]}  O-O {[%clk 0:02:54]} 8. a3 {[%clk 0:02:46]}  a6 {[%clk 0:02:54]} 9. Re1 {[%clk 0:02:43]}  b5 {[%clk 0:02:54]} 10. Ba2 {[%clk 0:02:44]}  Nd7 {[%clk 0:02:53]} 11. Bf4 {[%clk 0:02:41]}  Nde5 {[%clk 0:02:53]} 12. Nxe5 {[%clk 0:02:40]}  Nxe5 {[%clk 0:02:50]} 13. Qd2 {[%clk 0:02:39]}  Bb7 {[%clk 0:02:42]} 14. Bh6 {[%clk 0:02:40]}  e6 {[%clk 0:02:40]} 15. Bxg7 {[%clk 0:02:39]}  Kxg7 {[%clk 0:02:41]} 16. f4 {[%clk 0:02:37]}  Nc6 {[%clk 0:02:40]} 17. Rf1 {[%clk 0:02:30]}  Nd4 {[%clk 0:02:40]} 18. Ne2 {[%clk 0:02:28]}  Nxe2+ {[%clk 0:02:36]} 19. Qxe2 {[%clk 0:02:28]}  Qh4 {[%clk 0:02:31]} 20. Rae1 {[%clk 0:02:22]}  Rae8 {[%clk 0:02:30]} 21. b4 {[%clk 0:02:19]}  f5 {[%clk 0:02:23]} 22. bxc5 {[%clk 0:02:03]}  dxc5 {[%clk 0:02:18]} 23. Qe3 {[%clk 0:01:59]}  fxe4 {[%clk 0:02:14]} 24. dxe4 {[%clk 0:01:59]}  c4 {[%clk 0:02:12]} 25. a4 {[%clk 0:01:51]}  Re7 {[%clk 0:01:55]} 26. axb5 {[%clk 0:01:49]}  axb5 {[%clk 0:01:55]} 27. Rb1 {[%clk 0:01:47]}  Bc6 {[%clk 0:01:38]} 28. Qc5 {[%clk 0:01:47]}  Bxe4 {[%clk 0:01:35]} 29. Qe5+ {[%clk 0:01:46]}  Kh6 {[%clk 0:01:30]} 30. Qxe4 {[%clk 0:01:46]}  Rf5 {[%clk 0:01:30]} 31. c3 {[%clk 0:01:40]}  e5 {[%clk 0:01:30]} 32. Rbe1 {[%clk 0:01:29]}  Ref7 {[%clk 0:01:24]} 33. Bb1 {[%clk 0:01:02]}  exf4 {[%clk 0:01:00]} 34. Rf3 {[%clk 0:00:44]}  Qf6 {[%clk 0:00:53]} 35. Qe2 {[%clk 0:00:39]}  Rg5 {[%clk 0:00:53]} 36. Ref1 {[%clk 0:00:38]}  Re7 {[%clk 0:00:46]} 37. Qf2 {[%clk 0:00:38]}  Qe5 {[%clk 0:00:45]} 38. Rxf4 {[%clk 0:00:33]}  Qxc3 {[%clk 0:00:45]} 39. Qh4+ {[%clk 0:00:33]}  Rh5 {[%clk 0:00:37]} 40. Qxe7 {[%clk 0:00:33]}  Qe3+ {[%clk 0:00:37]} 41. Qxe3 {[%clk 0:00:32]} 1-0


[Site "https://www.chess.com"]

[Event "Titled Tuesday Blitz February 14 Late 2023"]
[White "Bolourchifard, Farzad"]
[Black "Dzida, Kamil"]
[WhiteFideId "12510084"]
[BlackFideId "21828652"]
[WhiteElo "2292"]
[BlackElo "2352"]
[Result "1/2-1/2"]
[Round "03"]
[TimeControl "180+2"]
[Date "2023.02.14"]
[WhiteClock "0:00:14"]
[BlackClock "0:00:03"]

1. e4 {[%clk 0:03:00]}  e5 {[%clk 0:02:59]} 2. Nf3 {[%clk 0:03:00]}  Nc6 {[%clk 0:02:59]} 3. Bc4 {[%clk 0:03:01]}  Nf6 {[%clk 0:02:59]} 4. d3 {[%clk 0:03:01]}  Bc5 {[%clk 0:02:57]} 5. O-O {[%clk 0:03:02]}  a6 {[%clk 0:02:54]} 6. c3 {[%clk 0:03:02]}  Ba7 {[%clk 0:02:51]} 7. Bb3 {[%clk 0:03:02]}  d6 {[%clk 0:02:50]} 8. Nbd2 {[%clk 0:03:01]}  h6 {[%clk 0:02:50]} 9. Re1 {[%clk 0:03:01]}  Be6 {[%clk 0:02:50]} 10. Nf1 {[%clk 0:03:02]}  O-O {[%clk 0:02:49]} 11. Ng3 {[%clk 0:03:02]}  Qd7 {[%clk 0:02:46]} 12. Nh4 {[%clk 0:02:44]}  d5 {[%clk 0:02:41]} 13. Qe2 {[%clk 0:02:37]}  Rad8 {[%clk 0:02:34]} 14. Nhf5 {[%clk 0:02:35]}  dxe4 {[%clk 0:02:25]} 15. dxe4 {[%clk 0:02:35]}  Qd3 {[%clk 0:02:25]} 16. Qxd3 {[%clk 0:01:31]}  Rxd3 {[%clk 0:02:24]} 17. Bc2 {[%clk 0:01:31]}  Rd7 {[%clk 0:02:20]} 18. Be3 {[%clk 0:01:32]}  Bxe3 {[%clk 0:02:13]} 19. Nxe3 {[%clk 0:01:33]}  Rfd8 {[%clk 0:02:04]} 20. f3 {[%clk 0:01:31]}  g6 {[%clk 0:01:54]} 21. Kf2 {[%clk 0:01:30]}  Na5 {[%clk 0:01:38]} 22. b3 {[%clk 0:01:26]}  b5 {[%clk 0:01:28]} 23. Red1 {[%clk 0:01:19]}  Nc6 {[%clk 0:01:24]} 24. Rxd7 {[%clk 0:01:07]}  Rxd7 {[%clk 0:01:25]} 25. b4 {[%clk 0:00:38]}  a5 {[%clk 0:00:59]} 26. a4 {[%clk 0:00:38]}  axb4 {[%clk 0:00:34]} 27. axb5 {[%clk 0:00:38]}  Ne7 {[%clk 0:00:27]} 28. cxb4 {[%clk 0:00:36]}  Rd4 {[%clk 0:00:27]} 29. Rb1 {[%clk 0:00:21]}  Nc8 {[%clk 0:00:18]} 30. Ne2 {[%clk 0:00:21]}  Rd2 {[%clk 0:00:17]} 31. Ke1 {[%clk 0:00:21]}  Rd8 {[%clk 0:00:17]} 32. Rc1 {[%clk 0:00:22]}  Nb6 {[%clk 0:00:17]} 33. Bd1 {[%clk 0:00:20]}  Ne8 {[%clk 0:00:17]} 34. Nc3 {[%clk 0:00:19]}  Rd4 {[%clk 0:00:17]} 35. Ncd5 {[%clk 0:00:19]}  Bxd5 {[%clk 0:00:15]} 36. exd5 {[%clk 0:00:19]}  Rxb4 {[%clk 0:00:15]} 37. Be2 {[%clk 0:00:17]}  Rd4 {[%clk 0:00:15]} 38. Rc5 {[%clk 0:00:17]}  Kf8 {[%clk 0:00:14]} 39. Kf2 {[%clk 0:00:17]}  Ke7 {[%clk 0:00:14]} 40. h4 {[%clk 0:00:17]}  Kd6 {[%clk 0:00:15]} 41. Rc6+ {[%clk 0:00:18]}  Kd7 {[%clk 0:00:15]} 42. Rc5 {[%clk 0:00:18]}  Rd2 {[%clk 0:00:15]} 43. h5 {[%clk 0:00:17]}  Nd6 {[%clk 0:00:13]} 44. hxg6 {[%clk 0:00:17]}  fxg6 {[%clk 0:00:13]} 45. Rc6 {[%clk 0:00:17]}  Nxb5 {[%clk 0:00:12]} 46. Ke1 {[%clk 0:00:15]}  Rxe2+ {[%clk 0:00:13]} 47. Kxe2 {[%clk 0:00:14]}  Nd4+ {[%clk 0:00:14]} 48. Kd3 {[%clk 0:00:15]}  Nxc6 {[%clk 0:00:14]} 49. dxc6+ {[%clk 0:00:15]}  Kxc6 {[%clk 0:00:15]} 50. Ke4 {[%clk 0:00:16]}  Kd6 {[%clk 0:00:16]} 51. Ng4 {[%clk 0:00:17]}  h5 {[%clk 0:00:16]} 52. Nxe5 {[%clk 0:00:17]}  g5 {[%clk 0:00:15]} 53. Nf7+ {[%clk 0:00:18]}  Ke6 {[%clk 0:00:15]} 54. Nxg5+ {[%clk 0:00:18]}  Kf6 {[%clk 0:00:16]} 55. Nh3 {[%clk 0:00:19]}  Nc8 {[%clk 0:00:15]} 56. Nf4 {[%clk 0:00:19]}  Nd6+ {[%clk 0:00:16]} 57. Kd5 {[%clk 0:00:20]}  Kg5 {[%clk 0:00:11]} 58. Ne6+ {[%clk 0:00:20]}  Kh4 {[%clk 0:00:12]} 59. Nxc7 {[%clk 0:00:21]}  Nf5 {[%clk 0:00:13]} 60. Ke5 {[%clk 0:00:20]}  Ne3 {[%clk 0:00:12]} 61. Ne6 {[%clk 0:00:18]}  Nxg2 {[%clk 0:00:12]} 62. Kf5 {[%clk 0:00:18]}  Kg3 {[%clk 0:00:11]} 63. Ng5 {[%clk 0:00:16]}  h4 {[%clk 0:00:11]} 64. Kf6 {[%clk 0:00:17]}  Ne3 {[%clk 0:00:07]} 65. Kg6 {[%clk 0:00:15]}  Nd5 {[%clk 0:00:05]} 66. Kh5 {[%clk 0:00:14]}  Nf4+ {[%clk 0:00:05]} 67. Kh6 {[%clk 0:00:15]}  Nd3 {[%clk 0:00:03]} 68. Kh5 {[%clk 0:00:14]}  Ne5 {[%clk 0:00:03]} 69. Ne4+ {[%clk 0:00:15]}  Kxf3 {[%clk 0:00:03]} 70. Kxh4 {[%clk 0:00:14]} 1/2-1/2


[Site "https://www.chess.com"]

[Event "Titled Tuesday Blitz February 14 Late 2023"]
[White "Carrasco Miranda, Andres"]
[Black "Aggelis, Nikolaos"]
[WhiteFideId "3405990"]
[BlackFideId "4213220"]
[WhiteElo "2240"]
[BlackElo "2270"]
[Result "0-1"]
[Round "03"]
[TimeControl "180+2"]
[Date "2023.02.14"]
[WhiteClock "0:01:17"]
[BlackClock "0:02:06"]

1. d4 {[%clk 0:03:00]}  Nf6 {[%clk 0:02:56]} 2. c4 {[%clk 0:03:00]}  g6 {[%clk 0:02:57]} 3. g3 {[%clk 0:03:00]}  d5 {[%clk 0:02:58]} 4. cxd5 {[%clk 0:03:00]}  Nxd5 {[%clk 0:02:59]} 5. Nf3 {[%clk 0:02:59]}  Bg7 {[%clk 0:02:59]} 6. Bg2 {[%clk 0:02:59]}  O-O {[%clk 0:02:59]} 7. O-O {[%clk 0:02:59]}  Nc6 {[%clk 0:02:56]} 8. Nc3 {[%clk 0:02:59]}  e5 {[%clk 0:02:52]} 9. e4 {[%clk 0:02:53]}  Nxc3 {[%clk 0:02:50]} 10. bxc3 {[%clk 0:02:52]}  exd4 {[%clk 0:02:51]} 11. cxd4 {[%clk 0:02:53]}  Nxd4 {[%clk 0:02:49]} 12. Rb1 {[%clk 0:02:34]}  c6 {[%clk 0:02:31]} 13. Nxd4 {[%clk 0:02:30]}  Qxd4 {[%clk 0:02:30]} 14. Bb2 {[%clk 0:02:12]}  Qxd1 {[%clk 0:02:24]} 15. Rfxd1 {[%clk 0:02:13]}  Bg4 {[%clk 0:02:16]} 16. Bxg7 {[%clk 0:02:09]}  Kxg7 {[%clk 0:02:11]} 17. f3 {[%clk 0:02:09]}  Be6 {[%clk 0:02:11]} 18. Rxb7 {[%clk 0:02:01]}  Rfb8 {[%clk 0:02:10]} 19. Rxb8 {[%clk 0:01:56]}  Rxb8 {[%clk 0:02:11]} 20. Rd2 {[%clk 0:01:53]}  c5 {[%clk 0:02:11]} 21. Bf1 {[%clk 0:01:52]}  Rb1 {[%clk 0:02:09]} 22. Kf2 {[%clk 0:01:52]}  Ra1 {[%clk 0:02:09]} 23. Ke3 {[%clk 0:01:17]}  Rxf1 {[%clk 0:02:06]} 0-1


[Site "https://www.chess.com"]

[Event "Titled Tuesday Blitz February 14 Late 2023"]
[White "Papp, Levente"]
[Black "Melikhov, Evgeny V."]
[WhiteFideId "751243"]
[BlackFideId "4122046"]
[WhiteElo "2353"]
[BlackElo "2269"]
[Result "1-0"]
[Round "03"]
[TimeControl "180+2"]
[Date "2023.02.14"]
[WhiteClock "0:00:31"]
[BlackClock "0:00:08"]

1. b3 {[%clk 0:03:00]}  e5 {[%clk 0:02:59]} 2. Bb2 {[%clk 0:03:01]}  Nc6 {[%clk 0:02:59]} 3. c4 {[%clk 0:02:59]}  d5 {[%clk 0:02:59]} 4. cxd5 {[%clk 0:02:59]}  Qxd5 {[%clk 0:02:58]} 5. Nc3 {[%clk 0:02:59]}  Qd8 {[%clk 0:02:54]} 6. g3 {[%clk 0:02:55]}  Bg4 {[%clk 0:02:40]} 7. h3 {[%clk 0:02:52]}  Bh5 {[%clk 0:02:39]} 8. Bg2 {[%clk 0:02:51]}  Qd7 {[%clk 0:02:38]} 9. Rc1 {[%clk 0:02:42]}  Nf6 {[%clk 0:02:33]} 10. Nf3 {[%clk 0:02:36]}  a6 {[%clk 0:02:25]} 11. O-O {[%clk 0:02:10]}  Bd6 {[%clk 0:02:16]} 12. Ng5 {[%clk 0:02:01]}  O-O {[%clk 0:01:56]} 13. Nge4 {[%clk 0:01:56]}  Nxe4 {[%clk 0:01:54]} 14. Nxe4 {[%clk 0:01:57]}  Nd4 {[%clk 0:01:47]} 15. g4 {[%clk 0:01:47]}  Bg6 {[%clk 0:01:39]} 16. Nc5 {[%clk 0:01:41]}  Bxc5 {[%clk 0:01:20]} 17. Rxc5 {[%clk 0:01:42]}  c6 {[%clk 0:01:13]} 18. Rxe5 {[%clk 0:01:31]}  Bc2 {[%clk 0:01:09]} 19. Qc1 {[%clk 0:01:26]}  Bg6 {[%clk 0:00:46]} 20. Qc4 {[%clk 0:00:57]}  Rad8 {[%clk 0:00:43]} 21. e3 {[%clk 0:00:52]}  Nb5 {[%clk 0:00:28]} 22. d4 {[%clk 0:00:53]}  Rfe8 {[%clk 0:00:17]} 23. Rxe8+ {[%clk 0:00:51]}  Rxe8 {[%clk 0:00:17]} 24. d5 {[%clk 0:00:35]}  cxd5 {[%clk 0:00:14]} 25. Qxd5 {[%clk 0:00:36]}  Qxd5 {[%clk 0:00:12]} 26. Bxd5 {[%clk 0:00:37]}  Be4 {[%clk 0:00:11]} 27. Rd1 {[%clk 0:00:32]}  Bxd5 {[%clk 0:00:11]} 28. Rxd5 {[%clk 0:00:32]}  f6 {[%clk 0:00:08]} 29. Rd7 {[%clk 0:00:31]}  b6 {[%clk 0:00:08]} 30. a4 {[%clk 0:00:31]} 1-0


[Site "https://www.chess.com"]

[Event "Titled Tuesday Blitz February 14 Late 2023"]
[White "Cori T., Deysi"]
[Black "Li, Hui"]
[WhiteFideId "3801934"]
[BlackFideId "15400310"]
[WhiteElo "2362"]
[BlackElo "1963"]
[Result "1-0"]
[Round "03"]
[TimeControl "180+2"]
[Date "2023.02.14"]
[WhiteClock "0:02:00"]
[BlackClock "0:01:03"]

1. Nf3 {[%clk 0:03:00]}  d5 {[%clk 0:02:37]} 2. d4 {[%clk 0:03:00]}  Nf6 {[%clk 0:02:34]} 3. c4 {[%clk 0:02:59]}  e6 {[%clk 0:02:34]} 4. Nc3 {[%clk 0:02:58]}  Be7 {[%clk 0:02:34]} 5. e3 {[%clk 0:02:57]}  O-O {[%clk 0:02:33]} 6. Qc2 {[%clk 0:02:57]}  c5 {[%clk 0:02:27]} 7. dxc5 {[%clk 0:02:56]}  Bxc5 {[%clk 0:02:25]} 8. a3 {[%clk 0:02:56]}  Be7 {[%clk 0:02:22]} 9. Bd3 {[%clk 0:02:53]}  dxc4 {[%clk 0:02:21]} 10. Bxc4 {[%clk 0:02:53]}  a6 {[%clk 0:02:21]} 11. O-O {[%clk 0:02:46]}  b5 {[%clk 0:02:19]} 12. Rd1 {[%clk 0:02:47]}  Qc7 {[%clk 0:02:17]} 13. Bd3 {[%clk 0:02:47]}  Bb7 {[%clk 0:02:15]} 14. e4 {[%clk 0:02:47]}  Nbd7 {[%clk 0:02:13]} 15. Bg5 {[%clk 0:02:40]}  Rac8 {[%clk 0:02:08]} 16. Rac1 {[%clk 0:02:38]}  Ne5 {[%clk 0:02:03]} 17. Be2 {[%clk 0:02:34]}  Nxf3+ {[%clk 0:02:01]} 18. Bxf3 {[%clk 0:02:35]}  e5 {[%clk 0:01:34]} 19. Qe2 {[%clk 0:02:07]}  Rfd8 {[%clk 0:01:32]} 20. Nd5 {[%clk 0:02:02]}  Nxd5 {[%clk 0:01:14]} 21. Rxc7 {[%clk 0:02:01]}  Nxc7 {[%clk 0:01:03]} 22. Bxe7 {[%clk 0:02:00]} 1-0


[Site "https://www.chess.com"]

[Event "Titled Tuesday Blitz February 14 Late 2023"]
[White "Hoffmann, Asa"]
[Black "Yedidia, Daniel"]
[WhiteFideId "2001470"]
[BlackFideId "30905907"]
[WhiteElo "2185"]
[BlackElo "2041"]
[Result "1-0"]
[Round "03"]
[TimeControl "180+2"]
[Date "2023.02.14"]
[WhiteClock "0:00:09"]
[BlackClock "0:00:27"]

1. d4 {[%clk 0:02:59]}  Nf6 {[%clk 0:02:58]} 2. Bg5 {[%clk 0:02:58]}  c5 {[%clk 0:02:58]} 3. d5 {[%clk 0:02:57]}  Qb6 {[%clk 0:02:56]} 4. Nc3 {[%clk 0:02:57]}  d6 {[%clk 0:02:53]} 5. e4 {[%clk 0:02:56]}  Bd7 {[%clk 0:02:46]} 6. Nf3 {[%clk 0:02:48]}  Qxb2 {[%clk 0:02:44]} 7. Bd2 {[%clk 0:02:47]}  Qb6 {[%clk 0:02:44]} 8. e5 {[%clk 0:02:45]}  dxe5 {[%clk 0:02:43]} 9. Nxe5 {[%clk 0:02:44]}  g6 {[%clk 0:02:42]} 10. Rb1 {[%clk 0:02:38]}  Qc7 {[%clk 0:02:41]} 11. Bf4 {[%clk 0:02:17]}  Qa5 {[%clk 0:02:33]} 12. Qd2 {[%clk 0:02:10]}  Nh5 {[%clk 0:02:21]} 13. Nc4 {[%clk 0:02:04]}  Qd8 {[%clk 0:02:15]} 14. Bg5 {[%clk 0:01:50]}  f6 {[%clk 0:02:00]} 15. Be3 {[%clk 0:01:36]}  Bc8 {[%clk 0:01:43]} 16. Bxc5 {[%clk 0:01:33]}  b6 {[%clk 0:01:40]} 17. Ba3 {[%clk 0:01:24]}  Bb7 {[%clk 0:01:32]} 18. Be2 {[%clk 0:01:23]}  Ng7 {[%clk 0:01:30]} 19. Bf3 {[%clk 0:01:15]}  Nd7 {[%clk 0:01:26]} 20. O-O {[%clk 0:01:15]}  Nf5 {[%clk 0:01:24]} 21. Rfe1 {[%clk 0:01:13]}  Bg7 {[%clk 0:01:22]} 22. g4 {[%clk 0:01:06]}  Nh4 {[%clk 0:01:22]} 23. Bh1 {[%clk 0:00:52]}  Ne5 {[%clk 0:01:16]} 24. Nxe5 {[%clk 0:00:46]}  fxe5 {[%clk 0:01:16]} 25. Qg5 {[%clk 0:00:29]}  Bf6 {[%clk 0:01:09]} 26. Qh6 {[%clk 0:00:29]}  Qc7 {[%clk 0:01:04]} 27. Nb5 {[%clk 0:00:23]}  Qd7 {[%clk 0:01:04]} 28. h3 {[%clk 0:00:20]}  a6 {[%clk 0:01:02]} 29. Nc3 {[%clk 0:00:15]}  Rc8 {[%clk 0:01:02]} 30. Ne4 {[%clk 0:00:15]}  Bxd5 {[%clk 0:00:57]} 31. Nxf6+ {[%clk 0:00:14]}  exf6 {[%clk 0:00:58]} 32. Qxh4 {[%clk 0:00:14]}  Bxh1 {[%clk 0:00:48]} 33. Qxf6 {[%clk 0:00:13]}  Qc6 {[%clk 0:00:29]} 34. Rxe5+ {[%clk 0:00:11]}  Kd7 {[%clk 0:00:27]} 35. Qe7# {[%clk 0:00:09]} 1-0


[Site "https://www.chess.com"]

[Event "Titled Tuesday Blitz February 14 Late 2023"]
[White "Tworuszka, Michal"]
[Black "Piriflillo"]
[WhiteFideId "1117858"]
[WhiteElo "2260"]
[BlackElo "2322"]
[Result "0-1"]
[Round "03"]
[TimeControl "180+2"]
[Date "2023.02.14"]
[WhiteClock "0:01:23"]
[BlackClock "0:01:58"]

1. e4 {[%clk 0:02:56]}  e5 {[%clk 0:02:59]} 2. Nf3 {[%clk 0:02:56]}  Nc6 {[%clk 0:03:00]} 3. d4 {[%clk 0:02:56]}  exd4 {[%clk 0:03:00]} 4. Nxd4 {[%clk 0:02:57]}  Nf6 {[%clk 0:03:00]} 5. Nxc6 {[%clk 0:02:55]}  bxc6 {[%clk 0:02:59]} 6. Bd3 {[%clk 0:02:55]}  d5 {[%clk 0:02:58]} 7. exd5 {[%clk 0:02:55]}  cxd5 {[%clk 0:02:58]} 8. O-O {[%clk 0:02:56]}  Be7 {[%clk 0:02:58]} 9. Bg5 {[%clk 0:02:53]}  O-O {[%clk 0:02:58]} 10. Nd2 {[%clk 0:02:52]}  c5 {[%clk 0:02:55]} 11. Re1 {[%clk 0:02:49]}  h6 {[%clk 0:02:52]} 12. Bh4 {[%clk 0:02:48]}  Be6 {[%clk 0:02:50]} 13. Nf3 {[%clk 0:02:46]}  Rb8 {[%clk 0:02:43]} 14. b3 {[%clk 0:02:45]}  c4 {[%clk 0:02:38]} 15. bxc4 {[%clk 0:02:33]}  dxc4 {[%clk 0:02:37]} 16. Bf1 {[%clk 0:02:29]}  Bb4 {[%clk 0:02:35]} 17. Re3 {[%clk 0:02:13]}  Qxd1 {[%clk 0:02:31]} 18. Rxd1 {[%clk 0:02:13]}  Nd5 {[%clk 0:02:31]} 19. Re4 {[%clk 0:02:00]}  Nc3 {[%clk 0:02:27]} 20. Rxe6 {[%clk 0:01:54]}  fxe6 {[%clk 0:02:26]} 21. Rd7 {[%clk 0:01:52]}  Rf7 {[%clk 0:02:12]} 22. Rxf7 {[%clk 0:01:45]}  Kxf7 {[%clk 0:02:12]} 23. Bxc4 {[%clk 0:01:46]}  Be7 {[%clk 0:02:01]} 24. Ne5+ {[%clk 0:01:44]}  Ke8 {[%clk 0:02:00]} 25. g3 {[%clk 0:01:23]}  g5 {[%clk 0:01:58]} 0-1


[Site "https://www.chess.com"]

[Event "Titled Tuesday Blitz February 14 Late 2023"]
[White "Stanisz, Patryk"]
[Black "Pasti, Aron"]
[WhiteFideId "1123106"]
[BlackFideId "785857"]
[WhiteElo "2161"]
[BlackElo "2361"]
[Result "0-1"]
[Round "03"]
[TimeControl "180+2"]
[Date "2023.02.14"]
[WhiteClock "0:00:03"]
[BlackClock "0:01:28"]

1. d4 {[%clk 0:03:00]}  d5 {[%clk 0:02:58]} 2. c4 {[%clk 0:03:00]}  e6 {[%clk 0:02:55]} 3. Nc3 {[%clk 0:03:00]}  Nf6 {[%clk 0:02:54]} 4. Nf3 {[%clk 0:03:00]}  dxc4 {[%clk 0:02:54]} 5. e3 {[%clk 0:02:58]}  a6 {[%clk 0:02:54]} 6. Bxc4 {[%clk 0:02:58]}  b5 {[%clk 0:02:54]} 7. Bd3 {[%clk 0:02:57]}  Bb7 {[%clk 0:02:54]} 8. O-O {[%clk 0:02:58]}  Nbd7 {[%clk 0:02:55]} 9. Qe2 {[%clk 0:02:58]}  c5 {[%clk 0:02:55]} 10. Re1 {[%clk 0:02:49]}  Be7 {[%clk 0:02:51]} 11. b3 {[%clk 0:02:47]}  cxd4 {[%clk 0:02:46]} 12. exd4 {[%clk 0:02:40]}  O-O {[%clk 0:02:46]} 13. Bg5 {[%clk 0:02:34]}  Nd5 {[%clk 0:02:45]} 14. Bd2 {[%clk 0:01:54]}  Rc8 {[%clk 0:02:36]} 15. Ne4 {[%clk 0:01:51]}  N7f6 {[%clk 0:02:36]} 16. Ne5 {[%clk 0:01:48]}  Nxe4 {[%clk 0:02:23]} 17. Qxe4 {[%clk 0:01:47]}  g6 {[%clk 0:02:20]} 18. Bh6 {[%clk 0:01:45]}  Re8 {[%clk 0:02:14]} 19. Nxf7 {[%clk 0:01:39]}  Qb6 {[%clk 0:02:08]} 20. Ng5 {[%clk 0:01:00]}  Nb4 {[%clk 0:02:05]} 21. Qe5 {[%clk 0:00:51]}  Bf8 {[%clk 0:01:56]} 22. Bxf8 {[%clk 0:00:48]}  Rxf8 {[%clk 0:01:53]} 23. Nxe6 {[%clk 0:00:41]}  Rf7 {[%clk 0:01:52]} 24. Be4 {[%clk 0:00:39]}  Bxe4 {[%clk 0:01:44]} 25. Qxe4 {[%clk 0:00:29]}  Re8 {[%clk 0:01:39]} 26. Rad1 {[%clk 0:00:27]}  Rf6 {[%clk 0:01:29]} 27. Qg4 {[%clk 0:00:24]}  Rfxe6 {[%clk 0:01:26]} 28. Rxe6 {[%clk 0:00:14]}  Qxe6 {[%clk 0:01:27]} 29. Qxe6+ {[%clk 0:00:05]}  Rxe6 {[%clk 0:01:28]} 30. d5 {[%clk 0:00:04]}  Nxd5 {[%clk 0:01:28]} 31. h3 {[%clk 0:00:03]}  Nc3 {[%clk 0:01:28]} 0-1


[Site "https://www.chess.com"]

[Event "Titled Tuesday Blitz February 14 Late 2023"]
[White "Real_OceanStorm"]
[Black "Liu, Casper"]
[BlackFideId "1454153"]
[WhiteElo "2766"]
[BlackElo "2278"]
[Result "0-1"]
[Round "03"]
[TimeControl "180+2"]
[Date "2023.02.14"]
[WhiteClock "0:01:47"]
[BlackClock "0:01:17"]

1. b3 {[%clk 0:02:58]}  Nf6 {[%clk 0:02:59]} 2. Bb2 {[%clk 0:02:58]}  Nc6 {[%clk 0:02:58]} 3. e3 {[%clk 0:02:58]}  b6 {[%clk 0:02:59]} 4. d4 {[%clk 0:02:59]}  Bb7 {[%clk 0:03:00]} 5. Nf3 {[%clk 0:03:00]}  e6 {[%clk 0:03:00]} 6. c4 {[%clk 0:03:00]}  d5 {[%clk 0:03:00]} 7. Nbd2 {[%clk 0:03:01]}  Bb4 {[%clk 0:02:59]} 8. Bd3 {[%clk 0:03:00]}  Ne7 {[%clk 0:02:56]} 9. O-O {[%clk 0:03:00]}  c5 {[%clk 0:02:54]} 10. a3 {[%clk 0:03:00]}  Bxd2 {[%clk 0:02:53]} 11. Qxd2 {[%clk 0:03:01]}  O-O {[%clk 0:02:52]} 12. dxc5 {[%clk 0:03:02]}  bxc5 {[%clk 0:02:51]} 13. Qc3 {[%clk 0:02:58]}  Rb8 {[%clk 0:02:37]} 14. Ne5 {[%clk 0:02:52]}  Ng6 {[%clk 0:02:33]} 15. Nxg6 {[%clk 0:02:52]}  hxg6 {[%clk 0:02:32]} 16. b4 {[%clk 0:02:49]}  Ba6 {[%clk 0:02:25]} 17. Rfc1 {[%clk 0:02:40]}  dxc4 {[%clk 0:02:11]} 18. Bxc4 {[%clk 0:02:40]}  cxb4 {[%clk 0:02:10]} 19. Qe1 {[%clk 0:02:25]}  Bxc4 {[%clk 0:02:06]} 20. Rxc4 {[%clk 0:02:26]}  b3 {[%clk 0:02:01]} 21. Rac1 {[%clk 0:02:26]}  Nd5 {[%clk 0:01:58]} 22. Rc5 {[%clk 0:02:26]}  Qd7 {[%clk 0:01:56]} 23. R5c4 {[%clk 0:02:18]}  Rfc8 {[%clk 0:01:55]} 24. Bd4 {[%clk 0:02:17]}  Rxc4 {[%clk 0:01:43]} 25. Rxc4 {[%clk 0:02:17]}  b2 {[%clk 0:01:42]} 26. Qb1 {[%clk 0:02:16]}  Qb5 {[%clk 0:01:29]} 27. Rc5 {[%clk 0:01:49]}  Qxc5 {[%clk 0:01:16]} 28. Bxc5 {[%clk 0:01:47]}  Nc3 {[%clk 0:01:17]} 0-1


[Site "https://www.chess.com"]

[Event "Titled Tuesday Blitz February 14 Late 2023"]
[White "Ardila, Oscar Humberto"]
[Black "Donskov, Anatoly"]
[WhiteFideId "4404742"]
[BlackFideId "24143413"]
[WhiteElo "1982"]
[BlackElo "2279"]
[Result "0-1"]
[Round "03"]
[TimeControl "180+2"]
[Date "2023.02.14"]
[WhiteClock "0:00:25"]
[BlackClock "0:00:25"]

1. d4 {[%clk 0:02:59]}  d5 {[%clk 0:03:00]} 2. Nf3 {[%clk 0:02:59]}  Nf6 {[%clk 0:03:00]} 3. g3 {[%clk 0:02:59]}  Bf5 {[%clk 0:02:59]} 4. Bg2 {[%clk 0:02:59]}  e6 {[%clk 0:02:59]} 5. O-O {[%clk 0:02:59]}  h6 {[%clk 0:02:59]} 6. Nbd2 {[%clk 0:02:57]}  c6 {[%clk 0:02:59]} 7. b3 {[%clk 0:02:57]}  Nbd7 {[%clk 0:02:59]} 8. Bb2 {[%clk 0:02:57]}  Be7 {[%clk 0:02:59]} 9. c4 {[%clk 0:02:56]}  O-O {[%clk 0:02:59]} 10. Rc1 {[%clk 0:02:56]}  Re8 {[%clk 0:02:58]} 11. Ne5 {[%clk 0:02:55]}  a5 {[%clk 0:02:50]} 12. f4 {[%clk 0:02:54]}  a4 {[%clk 0:02:30]} 13. c5 {[%clk 0:02:52]}  axb3 {[%clk 0:02:22]} 14. axb3 {[%clk 0:02:52]}  Ra2 {[%clk 0:02:19]} 15. Bc3 {[%clk 0:02:50]}  Nxe5 {[%clk 0:01:55]} 16. fxe5 {[%clk 0:02:49]}  Ne4 {[%clk 0:01:44]} 17. Nxe4 {[%clk 0:02:47]}  dxe4 {[%clk 0:01:45]} 18. e3 {[%clk 0:02:41]}  Qd5 {[%clk 0:01:34]} 19. Rf2 {[%clk 0:02:33]}  Rea8 {[%clk 0:01:26]} 20. Bf1 {[%clk 0:02:15]}  Bg5 {[%clk 0:01:21]} 21. Bc4 {[%clk 0:02:12]}  Qd8 {[%clk 0:01:18]} 22. Qe1 {[%clk 0:02:04]}  b5 {[%clk 0:00:50]} 23. cxb6 {[%clk 0:01:57]}  Qxb6 {[%clk 0:00:51]} 24. Rxa2 {[%clk 0:01:57]}  Rxa2 {[%clk 0:00:50]} 25. Ra1 {[%clk 0:01:52]}  Qa7 {[%clk 0:00:50]} 26. Rxa2 {[%clk 0:01:13]}  Qxa2 {[%clk 0:00:51]} 27. Qd2 {[%clk 0:01:13]}  Qb1+ {[%clk 0:00:47]} 28. Kf2 {[%clk 0:01:12]}  Qh1 {[%clk 0:00:44]} 29. h4 {[%clk 0:00:59]}  Qf3+ {[%clk 0:00:34]} 30. Ke1 {[%clk 0:00:55]}  Qxg3+ {[%clk 0:00:33]} 31. Qf2 {[%clk 0:00:55]}  Bxh4 {[%clk 0:00:25]} 32. Qxg3 {[%clk 0:00:55]}  Bxg3+ {[%clk 0:00:26]} 33. Kf1 {[%clk 0:00:53]}  Bh3+ {[%clk 0:00:24]} 34. Kg1 {[%clk 0:00:52]}  Bg4 {[%clk 0:00:25]} 35. Ba6 {[%clk 0:00:47]}  h5 {[%clk 0:00:25]} 36. Kg2 {[%clk 0:00:43]}  h4 {[%clk 0:00:25]} 37. Bb7 {[%clk 0:00:36]}  Bf3+ {[%clk 0:00:25]} 38. Kh3 {[%clk 0:00:35]}  g5 {[%clk 0:00:25]} 39. Bxc6 {[%clk 0:00:25]}  g4# {[%clk 0:00:25]} 0-1


[Site "https://www.chess.com"]